[Event "Titled Tuesday Blitz June 28 Late 2022"]
[White "Yaksin, Oleg"]
[Black "Novikova, Galina"]
[WhiteFideId "24105880"]
[BlackFideId "4157095"]
[WhiteElo "2256"]
[BlackElo "1863"]
[Result "1-0"]
[Round "04"]
[TimeControl "180+1"]
[Date "2022.06.29"]
[WhiteClock "0:00:05"]
[BlackClock "0:00:02"]

1. d4 {[%clk 0:03:00]}  Nf6 {[%clk 0:02:59]} 2. c4 {[%clk 0:03:01]}  e5 {[%clk 0:02:59]} 3. g4 {[%clk 0:02:49]}  exd4 {[%clk 0:02:56]} 4. a3 {[%clk 0:02:37]}  c5 {[%clk 0:02:51]} 5. g5 {[%clk 0:02:33]}  Ne4 {[%clk 0:02:25]} 6. Bg2 {[%clk 0:02:23]}  Nxg5 {[%clk 0:02:20]} 7. Qb3 {[%clk 0:02:18]}  Nc6 {[%clk 0:02:17]} 8. Qg3 {[%clk 0:02:17]}  Ne6 {[%clk 0:02:15]} 9. h4 {[%clk 0:02:12]}  h5 {[%clk 0:02:07]} 10. Nh3 {[%clk 0:02:09]}  g6 {[%clk 0:02:05]} 11. Nd2 {[%clk 0:02:02]}  Bg7 {[%clk 0:02:02]} 12. Ne4 {[%clk 0:01:59]}  O-O {[%clk 0:01:57]} 13. Rg1 {[%clk 0:01:40]}  Ne5 {[%clk 0:01:47]} 14. Nf4 {[%clk 0:01:29]}  Ng4 {[%clk 0:01:19]} 15. f3 {[%clk 0:01:24]}  Ne3 {[%clk 0:01:08]} 16. Bxe3 {[%clk 0:01:20]}  dxe3 {[%clk 0:01:09]} 17. Nd5 {[%clk 0:01:04]}  Nd4 {[%clk 0:00:29]} 18. Kf1 {[%clk 0:00:52]}  d6 {[%clk 0:00:29]} 19. Nxd6 {[%clk 0:00:42]}  Be6 {[%clk 0:00:28]} 20. Nxe3 {[%clk 0:00:37]}  Nc6 {[%clk 0:00:12]} 21. Ne4 {[%clk 0:00:33]}  Bd4 {[%clk 0:00:11]} 22. f4 {[%clk 0:00:31]}  Bxe3 {[%clk 0:00:10]} 23. Qxe3 {[%clk 0:00:31]}  Qd4 {[%clk 0:00:11]} 24. Qf3 {[%clk 0:00:27]}  Bxc4 {[%clk 0:00:10]} 25. Bh3 {[%clk 0:00:23]}  Rfe8 {[%clk 0:00:09]} 26. Bf5 {[%clk 0:00:21]}  Qxb2 {[%clk 0:00:06]} 27. Re1 {[%clk 0:00:14]}  Qb3 {[%clk 0:00:05]} 28. Qxh5 {[%clk 0:00:11]}  Kf8 {[%clk 0:00:03]} 29. Qg5 {[%clk 0:00:06]}  Qb2 {[%clk 0:00:02]} 30. Bxg6 {[%clk 0:00:05]}  fxg6 {[%clk 0:00:02]} 31. Qxg6 {[%clk 0:00:06]}  Ke7 {[%clk 0:00:02]} 32. Qd6+ {[%clk 0:00:05]} 1-0


[Site "https://www.chess.com"]

[Event "Titled Tuesday Blitz June 28 Late 2022"]
[White "Yurasova, Daria"]
[Black "Winkels, Marcel"]
[WhiteFideId "34146919"]
[BlackFideId "1003887"]
[WhiteElo "2021"]
[BlackElo "1900"]
[Result "1-0"]
[Round "04"]
[TimeControl "180+1"]
[Date "2022.06.29"]
[WhiteClock "0:00:08"]
[BlackClock "0:00:34"]

1. e4 {[%clk 0:02:59]}  c5 {[%clk 0:02:58]} 2. Nf3 {[%clk 0:02:58]}  d6 {[%clk 0:02:59]} 3. d4 {[%clk 0:02:58]}  cxd4 {[%clk 0:03:00]} 4. Nxd4 {[%clk 0:02:59]}  Nf6 {[%clk 0:02:59]} 5. Nc3 {[%clk 0:03:00]}  a6 {[%clk 0:03:00]} 6. h3 {[%clk 0:03:00]}  e5 {[%clk 0:02:59]} 7. Nde2 {[%clk 0:03:00]}  h5 {[%clk 0:02:57]} 8. Bg5 {[%clk 0:02:59]}  Be7 {[%clk 0:02:57]} 9. Bxf6 {[%clk 0:02:57]}  Bxf6 {[%clk 0:02:56]} 10. Nd5 {[%clk 0:02:58]}  Bg5 {[%clk 0:02:56]} 11. Nec3 {[%clk 0:02:57]}  O-O {[%clk 0:02:53]} 12. Qxh5 {[%clk 0:02:55]}  Bh6 {[%clk 0:02:50]} 13. Qd1 {[%clk 0:02:54]}  Nc6 {[%clk 0:02:49]} 14. Be2 {[%clk 0:02:53]}  Nd4 {[%clk 0:02:48]} 15. O-O {[%clk 0:02:53]}  f5 {[%clk 0:02:48]} 16. Bc4 {[%clk 0:02:42]}  Kh8 {[%clk 0:02:46]} 17. Ne2 {[%clk 0:02:34]}  Nc6 {[%clk 0:02:36]} 18. exf5 {[%clk 0:01:53]}  Bxf5 {[%clk 0:02:34]} 19. Ng3 {[%clk 0:01:36]}  Be6 {[%clk 0:02:23]} 20. c3 {[%clk 0:01:22]}  Rc8 {[%clk 0:02:20]} 21. Be2 {[%clk 0:01:22]}  Ne7 {[%clk 0:02:09]} 22. Nxe7 {[%clk 0:01:21]}  Qxe7 {[%clk 0:02:09]} 23. Bg4 {[%clk 0:01:21]}  d5 {[%clk 0:02:05]} 24. Bxe6 {[%clk 0:01:11]}  Qxe6 {[%clk 0:02:05]} 25. Qe2 {[%clk 0:01:12]}  Rcd8 {[%clk 0:01:39]} 26. Rae1 {[%clk 0:01:10]}  Bf4 {[%clk 0:01:37]} 27. Nh5 {[%clk 0:01:09]}  Qf5 {[%clk 0:01:26]} 28. Nxf4 {[%clk 0:01:08]}  exf4 {[%clk 0:01:24]} 29. Qf3 {[%clk 0:00:26]}  Rf7 {[%clk 0:01:17]} 30. Re2 {[%clk 0:00:23]}  d4 {[%clk 0:01:10]} 31. cxd4 {[%clk 0:00:22]}  Rxd4 {[%clk 0:01:09]} 32. Rfe1 {[%clk 0:00:23]}  Rd3 {[%clk 0:01:06]} 33. Re8+ {[%clk 0:00:14]}  Kh7 {[%clk 0:01:05]} 34. Qe4 {[%clk 0:00:09]}  Rd2 {[%clk 0:00:56]} 35. Qf3 {[%clk 0:00:04]}  Rxb2 {[%clk 0:00:51]} 36. R8e5 {[%clk 0:00:03]}  Qg6 {[%clk 0:00:50]} 37. Rh5+ {[%clk 0:00:03]}  Kg8 {[%clk 0:00:49]} 38. Re8+ {[%clk 0:00:03]}  Rf8 {[%clk 0:00:49]} 39. Qd5+ {[%clk 0:00:04]}  Qf7 {[%clk 0:00:48]} 40. Rxf8+ {[%clk 0:00:03]}  Kxf8 {[%clk 0:00:47]} 41. Qd8+ {[%clk 0:00:03]}  Qe8 {[%clk 0:00:46]} 42. Rh8+ {[%clk 0:00:03]}  Kf7 {[%clk 0:00:36]} 43. Qxe8+ {[%clk 0:00:04]}  Kf6 {[%clk 0:00:36]} 44. Rf8+ {[%clk 0:00:05]}  Kg5 {[%clk 0:00:36]} 45. Qe7+ {[%clk 0:00:05]}  Kh6 {[%clk 0:00:35]} 46. Qh4+ {[%clk 0:00:05]}  Kg6 {[%clk 0:00:35]} 47. Qg4+ {[%clk 0:00:06]}  Kh6 {[%clk 0:00:34]} 48. Qxf4+ {[%clk 0:00:06]}  Kg6 {[%clk 0:00:34]} 49. Qf5+ {[%clk 0:00:07]}  Kh6 {[%clk 0:00:34]} 50. Rh8# {[%clk 0:00:08]} 1-0


[Site "https://www.chess.com"]

[Event "Titled Tuesday Blitz June 28 Late 2022"]
[White "Abdrlauf, Elham"]
[Black "Bjelobrk, Igor"]
[WhiteFideId "1533533"]
[BlackFideId "4300726"]
[WhiteElo "2403"]
[BlackElo "2335"]
[Result "1-0"]
[Round "05"]
[TimeControl "180+1"]
[Date "2022.06.28"]
[WhiteClock "0:00:07"]
[BlackClock "0:00:07"]

1. e4 {[%clk 0:02:59]}  e5 {[%clk 0:02:57]} 2. Nc3 {[%clk 0:03:00]}  Nc6 {[%clk 0:02:54]} 3. Bc4 {[%clk 0:03:00]}  Nf6 {[%clk 0:02:52]} 4. d3 {[%clk 0:03:00]}  Bc5 {[%clk 0:02:50]} 5. f4 {[%clk 0:03:00]}  d6 {[%clk 0:02:49]} 6. Nf3 {[%clk 0:03:01]}  Bg4 {[%clk 0:02:45]} 7. Na4 {[%clk 0:02:57]}  Bb6 {[%clk 0:02:39]} 8. Nxb6 {[%clk 0:02:56]}  axb6 {[%clk 0:02:40]} 9. c3 {[%clk 0:02:57]}  exf4 {[%clk 0:02:38]} 10. Bxf4 {[%clk 0:02:58]}  O-O {[%clk 0:02:37]} 11. O-O {[%clk 0:02:31]}  Ne5 {[%clk 0:02:22]} 12. Bxe5 {[%clk 0:02:28]}  dxe5 {[%clk 0:02:21]} 13. h3 {[%clk 0:02:27]}  Bxf3 {[%clk 0:02:16]} 14. Qxf3 {[%clk 0:02:27]}  Qe7 {[%clk 0:02:12]} 15. Kh1 {[%clk 0:02:17]}  Ne8 {[%clk 0:02:10]} 16. Qg3 {[%clk 0:02:17]}  Nd6 {[%clk 0:02:09]} 17. Bb3 {[%clk 0:02:16]}  Kh8 {[%clk 0:02:06]} 18. Rf3 {[%clk 0:02:07]}  f6 {[%clk 0:02:05]} 19. Raf1 {[%clk 0:02:03]}  Rad8 {[%clk 0:02:04]} 20. Qh4 {[%clk 0:01:45]}  b5 {[%clk 0:02:00]} 21. g4 {[%clk 0:01:43]}  h6 {[%clk 0:01:58]} 22. Kg2 {[%clk 0:01:32]}  Kh7 {[%clk 0:01:57]} 23. Qg3 {[%clk 0:01:29]}  Rfe8 {[%clk 0:01:47]} 24. h4 {[%clk 0:01:07]}  c6 {[%clk 0:01:47]} 25. Rh1 {[%clk 0:00:56]}  Kg6 {[%clk 0:01:38]} 26. g5 {[%clk 0:00:31]}  fxg5 {[%clk 0:01:31]} 27. hxg5 {[%clk 0:00:31]}  Qxg5 {[%clk 0:01:30]} 28. Qxg5+ {[%clk 0:00:15]}  hxg5 {[%clk 0:01:30]} 29. Bc2 {[%clk 0:00:10]}  g4 {[%clk 0:01:06]} 30. Rg3 {[%clk 0:00:08]}  Kg5 {[%clk 0:01:01]} 31. Bd1 {[%clk 0:00:07]}  g6 {[%clk 0:00:50]} 32. Rxg4+ {[%clk 0:00:06]}  Kf6 {[%clk 0:00:51]} 33. Rh7 {[%clk 0:00:05]}  Rh8 {[%clk 0:00:46]} 34. Rxh8 {[%clk 0:00:02]}  Rxh8 {[%clk 0:00:46]} 35. d4 {[%clk 0:00:02]}  Nf7 {[%clk 0:00:44]} 36. Bb3 {[%clk 0:00:02]}  exd4 {[%clk 0:00:33]} 37. cxd4 {[%clk 0:00:03]}  Nh6 {[%clk 0:00:25]} 38. Rf4+ {[%clk 0:00:04]}  Kg7 {[%clk 0:00:24]} 39. Rf2 {[%clk 0:00:02]}  Ng4 {[%clk 0:00:23]} 40. Rf4 {[%clk 0:00:02]}  Nf6 {[%clk 0:00:23]} 41. e5 {[%clk 0:00:02]}  Nd5 {[%clk 0:00:19]} 42. Bxd5 {[%clk 0:00:03]}  cxd5 {[%clk 0:00:20]} 43. Rf6 {[%clk 0:00:04]}  Rc8 {[%clk 0:00:20]} 44. Rd6 {[%clk 0:00:04]}  Rc2+ {[%clk 0:00:20]} 45. Kf3 {[%clk 0:00:04]}  Rxb2 {[%clk 0:00:20]} 46. Rxd5 {[%clk 0:00:05]}  Rxa2 {[%clk 0:00:19]} 47. Rd7+ {[%clk 0:00:05]}  Kh6 {[%clk 0:00:19]} 48. e6 {[%clk 0:00:05]}  Ra1 {[%clk 0:00:16]} 49. e7 {[%clk 0:00:05]}  Re1 {[%clk 0:00:16]} 50. d5 {[%clk 0:00:06]}  b4 {[%clk 0:00:16]} 51. d6 {[%clk 0:00:07]}  Kg5 {[%clk 0:00:13]} 52. Rd8 {[%clk 0:00:05]}  b3 {[%clk 0:00:10]} 53. e8=Q {[%clk 0:00:05]}  Rxe8 {[%clk 0:00:07]} 54. Rxe8 {[%clk 0:00:06]}  b2 {[%clk 0:00:07]} 55. Re1 {[%clk 0:00:07]} 1-0


[Site "https://www.chess.com"]

[Event "Titled Tuesday Blitz June 28 Late 2022"]
[White "Ahn, Hongjin"]
[Black "Samsonkin, Artiom"]
[WhiteFideId "13201492"]
[BlackFideId "13503111"]
[WhiteElo "1873"]
[BlackElo "2513"]
[Result "1-0"]
[Round "05"]
[TimeControl "180+1"]
[Date "2022.06.29"]
[WhiteClock "0:00:49"]
[BlackClock "0:00:03"]

1. d4 {[%clk 0:03:00]}  d5 {[%clk 0:02:55]} 2. Nf3 {[%clk 0:03:00]}  Nf6 {[%clk 0:02:54]} 3. g3 {[%clk 0:03:00]}  c5 {[%clk 0:02:30]} 4. Bg2 {[%clk 0:03:01]}  Nc6 {[%clk 0:02:31]} 5. O-O {[%clk 0:03:00]}  e6 {[%clk 0:02:11]} 6. c4 {[%clk 0:02:59]}  dxc4 {[%clk 0:02:03]} 7. Qa4 {[%clk 0:02:59]}  Bd7 {[%clk 0:01:56]} 8. Qxc4 {[%clk 0:02:57]}  cxd4 {[%clk 0:01:56]} 9. Nxd4 {[%clk 0:02:56]}  Rc8 {[%clk 0:01:56]} 10. Nc3 {[%clk 0:02:54]}  Nxd4 {[%clk 0:01:51]} 11. Qxd4 {[%clk 0:02:54]}  Bc5 {[%clk 0:01:51]} 12. Qh4 {[%clk 0:02:54]}  Bc6 {[%clk 0:01:37]} 13. Bxc6+ {[%clk 0:02:35]}  Rxc6 {[%clk 0:01:38]} 14. Rd1 {[%clk 0:02:35]}  Qb6 {[%clk 0:01:17]} 15. Na4 {[%clk 0:02:12]}  Bxf2+ {[%clk 0:01:03]} 16. Kf1 {[%clk 0:02:05]}  Qc7 {[%clk 0:00:46]} 17. Kxf2 {[%clk 0:01:16]}  Rc4 {[%clk 0:00:45]} 18. Bf4 {[%clk 0:01:16]}  e5 {[%clk 0:00:36]} 19. Bxe5 {[%clk 0:01:07]}  Qc6 {[%clk 0:00:27]} 20. Bxf6 {[%clk 0:00:59]}  O-O {[%clk 0:00:03]} 21. Qg5 {[%clk 0:00:49]} 1-0


[Site "https://www.chess.com"]

[Event "Titled Tuesday Blitz June 28 Late 2022"]
[White "Ambartsumova, Karina"]
[Black "Gaehwiler, Gabriel"]
[WhiteFideId "4166299"]
[BlackFideId "1314530"]
[WhiteElo "2262"]
[BlackElo "2383"]
[Result "1-0"]
[Round "05"]
[TimeControl "180+1"]
[Date "2022.06.28"]
[WhiteClock "0:00:12"]
[BlackClock "0:00:03"]

1. Nf3 {[%clk 0:02:59]}  Nf6 {[%clk 0:02:58]} 2. c4 {[%clk 0:02:59]}  g6 {[%clk 0:02:58]} 3. g3 {[%clk 0:02:59]}  b6 {[%clk 0:02:57]} 4. Bg2 {[%clk 0:03:00]}  Bb7 {[%clk 0:02:58]} 5. O-O {[%clk 0:03:00]}  Bg7 {[%clk 0:02:58]} 6. Nc3 {[%clk 0:03:01]}  O-O {[%clk 0:02:58]} 7. Re1 {[%clk 0:03:01]}  Ne4 {[%clk 0:02:48]} 8. Qc2 {[%clk 0:02:53]}  Nxc3 {[%clk 0:02:45]} 9. bxc3 {[%clk 0:02:54]}  c5 {[%clk 0:02:43]} 10. d4 {[%clk 0:02:51]}  cxd4 {[%clk 0:02:31]} 11. cxd4 {[%clk 0:02:52]}  Nc6 {[%clk 0:02:29]} 12. Bb2 {[%clk 0:02:52]}  Rc8 {[%clk 0:02:25]} 13. d5 {[%clk 0:02:46]}  Na5 {[%clk 0:02:07]} 14. Bxg7 {[%clk 0:02:40]}  Kxg7 {[%clk 0:02:08]} 15. Nd2 {[%clk 0:02:33]}  Ba6 {[%clk 0:02:01]} 16. Qc3+ {[%clk 0:01:31]}  f6 {[%clk 0:01:46]} 17. e4 {[%clk 0:01:07]}  Bxc4 {[%clk 0:01:28]} 18. Qd4 {[%clk 0:00:58]}  e5 {[%clk 0:01:21]} 19. Qe3 {[%clk 0:00:53]}  Qe7 {[%clk 0:01:12]} 20. f4 {[%clk 0:00:48]}  Qc5 {[%clk 0:01:10]} 21. Bh3 {[%clk 0:00:46]}  Rf7 {[%clk 0:01:05]} 22. Nf3 {[%clk 0:00:44]}  Qxe3+ {[%clk 0:00:55]} 23. Rxe3 {[%clk 0:00:45]}  Re8 {[%clk 0:00:54]} 24. fxe5 {[%clk 0:00:39]}  fxe5 {[%clk 0:00:55]} 25. Ng5 {[%clk 0:00:40]}  Rf6 {[%clk 0:00:28]} 26. Bxd7 {[%clk 0:00:38]}  Re7 {[%clk 0:00:25]} 27. Bh3 {[%clk 0:00:37]}  Nb7 {[%clk 0:00:22]} 28. Rc1 {[%clk 0:00:28]}  Nd6 {[%clk 0:00:22]} 29. a4 {[%clk 0:00:24]}  a6 {[%clk 0:00:20]} 30. Ne6+ {[%clk 0:00:20]}  Kg8 {[%clk 0:00:20]} 31. Bg2 {[%clk 0:00:19]}  b5 {[%clk 0:00:20]} 32. axb5 {[%clk 0:00:18]}  axb5 {[%clk 0:00:21]} 33. Ra1 {[%clk 0:00:18]}  h5 {[%clk 0:00:20]} 34. Ra8+ {[%clk 0:00:17]}  Kh7 {[%clk 0:00:20]} 35. Ng5+ {[%clk 0:00:17]}  Kh6 {[%clk 0:00:19]} 36. h4 {[%clk 0:00:17]}  Kg7 {[%clk 0:00:19]} 37. Rea3 {[%clk 0:00:16]}  Rf8 {[%clk 0:00:19]} 38. R8a6 {[%clk 0:00:15]}  Rf6 {[%clk 0:00:17]} 39. Ra8 {[%clk 0:00:14]}  Rf8 {[%clk 0:00:16]} 40. Ne6+ {[%clk 0:00:13]}  Rxe6 {[%clk 0:00:16]} 41. dxe6 {[%clk 0:00:14]}  Bxe6 {[%clk 0:00:16]} 42. Rxf8 {[%clk 0:00:14]}  Kxf8 {[%clk 0:00:17]} 43. Ra6 {[%clk 0:00:14]}  Ke7 {[%clk 0:00:17]} 44. Rb6 {[%clk 0:00:14]}  Bc4 {[%clk 0:00:16]} 45. Kf2 {[%clk 0:00:12]}  Kd7 {[%clk 0:00:15]} 46. Ke3 {[%clk 0:00:13]}  Kc7 {[%clk 0:00:16]} 47. Ra6 {[%clk 0:00:13]}  b4 {[%clk 0:00:16]} 48. Ra7+ {[%clk 0:00:13]}  Kb6 {[%clk 0:00:16]} 49. Rg7 {[%clk 0:00:14]}  b3 {[%clk 0:00:15]} 50. Kd2 {[%clk 0:00:14]}  Bf7 {[%clk 0:00:08]} 51. Kc3 {[%clk 0:00:13]}  Kc5 {[%clk 0:00:07]} 52. Bf3 {[%clk 0:00:13]}  Nb5+ {[%clk 0:00:06]} 53. Kb2 {[%clk 0:00:14]}  Nd6 {[%clk 0:00:05]} 54. Bd1 {[%clk 0:00:12]}  Kd4 {[%clk 0:00:03]} 55. Bxb3 {[%clk 0:00:12]}  Bxb3 {[%clk 0:00:03]} 56. Kxb3 {[%clk 0:00:13]}  Nxe4 {[%clk 0:00:04]} 57. Rxg6 {[%clk 0:00:13]}  Ke3 {[%clk 0:00:04]} 58. g4 {[%clk 0:00:11]}  hxg4 {[%clk 0:00:03]} 59. h5 {[%clk 0:00:11]}  g3 {[%clk 0:00:04]} 60. h6 {[%clk 0:00:11]}  Nc5+ {[%clk 0:00:04]} 61. Kc4 {[%clk 0:00:11]}  Nd3 {[%clk 0:00:05]} 62. Rxg3+ {[%clk 0:00:11]}  Kf4 {[%clk 0:00:03]} 63. Rxd3 {[%clk 0:00:12]} 1-0


[Site "https://www.chess.com"]

[Event "Titled Tuesday Blitz June 28 Late 2022"]
[White "Andreikin, Dmitry"]
[Black "Xu, Yi"]
[WhiteFideId "4158814"]
[BlackFideId "8605564"]
[WhiteElo "2736"]
[BlackElo "2471"]
[Result "1/2-1/2"]
[Round "05"]
[TimeControl "180+1"]
[Date "2022.06.28"]
[WhiteClock "0:00:25"]
[BlackClock "0:00:13"]

1. d4 {[%clk 0:02:58]}  Nf6 {[%clk 0:03:00]} 2. c4 {[%clk 0:02:56]}  e6 {[%clk 0:03:00]} 3. Nf3 {[%clk 0:02:55]}  d5 {[%clk 0:03:00]} 4. g3 {[%clk 0:02:55]}  Bb4+ {[%clk 0:02:59]} 5. Bd2 {[%clk 0:02:54]}  Be7 {[%clk 0:02:59]} 6. Bg2 {[%clk 0:02:53]}  O-O {[%clk 0:03:00]} 7. O-O {[%clk 0:02:53]}  c6 {[%clk 0:03:00]} 8. Nc3 {[%clk 0:02:51]}  Nbd7 {[%clk 0:02:55]} 9. a4 {[%clk 0:02:49]}  a5 {[%clk 0:02:51]} 10. Bf4 {[%clk 0:02:48]}  b6 {[%clk 0:02:38]} 11. cxd5 {[%clk 0:02:28]}  Nxd5 {[%clk 0:02:26]} 12. Rc1 {[%clk 0:02:22]}  Bb7 {[%clk 0:02:17]} 13. Qb3 {[%clk 0:02:12]}  c5 {[%clk 0:01:55]} 14. Rfd1 {[%clk 0:02:09]}  Nxf4 {[%clk 0:01:44]} 15. gxf4 {[%clk 0:02:09]}  cxd4 {[%clk 0:01:33]} 16. Nxd4 {[%clk 0:02:06]}  Bxg2 {[%clk 0:01:32]} 17. Nxe6 {[%clk 0:01:54]}  Qc8 {[%clk 0:00:53]} 18. Kxg2 {[%clk 0:01:19]}  Nc5 {[%clk 0:00:45]} 19. Nxc5 {[%clk 0:01:18]}  Qg4+ {[%clk 0:00:43]} 20. Kh1 {[%clk 0:01:09]}  Bxc5 {[%clk 0:00:43]} 21. e3 {[%clk 0:00:56]}  Qf3+ {[%clk 0:00:23]} 22. Kg1 {[%clk 0:00:56]}  Qg4+ {[%clk 0:00:23]} 23. Kh1 {[%clk 0:00:56]}  Qf3+ {[%clk 0:00:23]} 24. Kg1 {[%clk 0:00:57]}  Qg4+ {[%clk 0:00:24]} 25. Kf1 {[%clk 0:00:58]}  Bxe3 {[%clk 0:00:20]} 26. fxe3 {[%clk 0:00:53]}  Qf3+ {[%clk 0:00:20]} 27. Ke1 {[%clk 0:00:45]}  Qxe3+ {[%clk 0:00:19]} 28. Kf1 {[%clk 0:00:44]}  Qf3+ {[%clk 0:00:13]} 29. Kg1 {[%clk 0:00:44]}  Qg4+ {[%clk 0:00:12]} 30. Kh1 {[%clk 0:00:39]}  Qf3+ {[%clk 0:00:12]} 31. Kg1 {[%clk 0:00:39]}  Qg4+ {[%clk 0:00:13]} 32. Kh1 {[%clk 0:00:25]}  Qf3+ {[%clk 0:00:13]} 33. Kg1 {[%clk 0:00:25]} 1/2-1/2


[Site "https://www.chess.com"]

[Event "Titled Tuesday Blitz June 28 Late 2022"]
[White "Araujo Sanchez, Josue"]
[Black "Van Foreest, Jorden"]
[WhiteFideId "6416896"]
[BlackFideId "1039784"]
[WhiteElo "2339"]
[BlackElo "2609"]
[Result "0-1"]
[Round "05"]
[TimeControl "180+1"]
[Date "2022.06.28"]
[WhiteClock "0:00:06"]
[BlackClock "0:00:33"]

1. d4 {[%clk 0:03:00]}  g6 {[%clk 0:03:00]} 2. Bf4 {[%clk 0:03:00]}  Bg7 {[%clk 0:02:58]} 3. e3 {[%clk 0:03:00]}  d6 {[%clk 0:02:55]} 4. h3 {[%clk 0:03:00]}  e5 {[%clk 0:02:54]} 5. dxe5 {[%clk 0:02:59]}  dxe5 {[%clk 0:02:54]} 6. Qxd8+ {[%clk 0:03:00]}  Kxd8 {[%clk 0:02:54]} 7. Bh2 {[%clk 0:03:00]}  f6 {[%clk 0:02:52]} 8. Nc3 {[%clk 0:03:00]}  Be6 {[%clk 0:02:51]} 9. O-O-O+ {[%clk 0:03:00]}  Nd7 {[%clk 0:02:50]} 10. Nf3 {[%clk 0:02:47]}  Ne7 {[%clk 0:02:49]} 11. Nd2 {[%clk 0:02:47]}  Ke8 {[%clk 0:02:45]} 12. Bc4 {[%clk 0:02:47]}  Nf8 {[%clk 0:02:42]} 13. Nb5 {[%clk 0:02:46]}  Kd7 {[%clk 0:02:04]} 14. a4 {[%clk 0:02:34]}  a6 {[%clk 0:02:00]} 15. Ne4+ {[%clk 0:02:34]}  Kc8 {[%clk 0:02:00]} 16. Bxe6+ {[%clk 0:02:19]}  Nxe6 {[%clk 0:02:01]} 17. Nbc3 {[%clk 0:02:19]}  f5 {[%clk 0:01:43]} 18. Nd2 {[%clk 0:02:18]}  b5 {[%clk 0:01:44]} 19. Nb3 {[%clk 0:02:15]}  b4 {[%clk 0:01:34]} 20. Nd5 {[%clk 0:02:13]}  Nc6 {[%clk 0:01:34]} 21. Rhe1 {[%clk 0:02:04]}  Kb7 {[%clk 0:01:31]} 22. e4 {[%clk 0:02:02]}  Rad8 {[%clk 0:01:27]} 23. f3 {[%clk 0:01:57]}  Rhf8 {[%clk 0:01:25]} 24. Bg1 {[%clk 0:01:53]}  fxe4 {[%clk 0:01:25]} 25. Rxe4 {[%clk 0:01:52]}  a5 {[%clk 0:01:24]} 26. Be3 {[%clk 0:01:45]}  Rd7 {[%clk 0:01:24]} 27. Rc4 {[%clk 0:01:43]}  Ra8 {[%clk 0:01:09]} 28. Rd3 {[%clk 0:01:32]}  Bf8 {[%clk 0:01:08]} 29. Nf6 {[%clk 0:01:27]}  Rxd3 {[%clk 0:01:07]} 30. cxd3 {[%clk 0:01:27]}  Be7 {[%clk 0:01:06]} 31. Ne4 {[%clk 0:01:26]}  Rd8 {[%clk 0:01:05]} 32. Kd2 {[%clk 0:01:25]}  Rd5 {[%clk 0:01:05]} 33. Ke2 {[%clk 0:01:24]}  h5 {[%clk 0:01:01]} 34. Kd2 {[%clk 0:01:23]}  Nb8 {[%clk 0:00:58]} 35. Ke2 {[%clk 0:01:05]}  Nd7 {[%clk 0:00:58]} 36. Rc1 {[%clk 0:01:00]}  Nb6 {[%clk 0:00:52]} 37. Ra1 {[%clk 0:00:59]}  Nf4+ {[%clk 0:00:46]} 38. Bxf4 {[%clk 0:00:55]}  exf4 {[%clk 0:00:47]} 39. Nbd2 {[%clk 0:00:35]}  Bf8 {[%clk 0:00:47]} 40. Nc4 {[%clk 0:00:35]}  Bg7 {[%clk 0:00:46]} 41. Ra2 {[%clk 0:00:32]}  Bd4 {[%clk 0:00:35]} 42. b3 {[%clk 0:00:31]}  Nd7 {[%clk 0:00:35]} 43. Rc2 {[%clk 0:00:28]}  Bb6 {[%clk 0:00:35]} 44. Ncd2 {[%clk 0:00:19]}  Nf8 {[%clk 0:00:35]} 45. Nf6 {[%clk 0:00:15]}  Re5+ {[%clk 0:00:33]} 46. Nde4 {[%clk 0:00:15]}  Ne6 {[%clk 0:00:34]} 47. Rb2 {[%clk 0:00:13]}  Bd4 {[%clk 0:00:34]} 48. Rb1 {[%clk 0:00:12]}  Be3 {[%clk 0:00:34]} 49. Kd1 {[%clk 0:00:09]}  Nd4 {[%clk 0:00:34]} 50. Nd7 {[%clk 0:00:08]}  Rd5 {[%clk 0:00:33]} 51. Ndc5+ {[%clk 0:00:07]}  Kb6 {[%clk 0:00:31]} 52. h4 {[%clk 0:00:05]}  Rxc5 {[%clk 0:00:31]} 53. Nxc5 {[%clk 0:00:06]}  Kxc5 {[%clk 0:00:32]} 54. Rb2 {[%clk 0:00:07]}  Kd5 {[%clk 0:00:32]} 55. Rb1 {[%clk 0:00:07]}  c5 {[%clk 0:00:32]} 56. Ke1 {[%clk 0:00:07]}  Nf5 {[%clk 0:00:31]} 57. Rb2 {[%clk 0:00:05]}  Nxh4 {[%clk 0:00:31]} 58. Rc2 {[%clk 0:00:05]}  Nf5 {[%clk 0:00:31]} 59. Kf1 {[%clk 0:00:05]}  Nd4 {[%clk 0:00:32]} 60. Rb2 {[%clk 0:00:06]}  g5 {[%clk 0:00:33]} 61. Rb1 {[%clk 0:00:06]}  g4 {[%clk 0:00:33]} 62. Rb2 {[%clk 0:00:07]}  gxf3 {[%clk 0:00:34]} 63. gxf3 {[%clk 0:00:06]}  Nxf3 {[%clk 0:00:34]} 64. Rg2 {[%clk 0:00:06]}  Nd2+ {[%clk 0:00:33]} 65. Ke2 {[%clk 0:00:06]}  f3+ {[%clk 0:00:33]} 0-1


[Site "https://www.chess.com"]

[Event "Titled Tuesday Blitz June 28 Late 2022"]
[White "Bach, Matthias"]
[Black "Donatti, Alvaro"]
[WhiteFideId "4603168"]
[BlackFideId "3000303"]
[WhiteElo "2165"]
[BlackElo "2138"]
[Result "1-0"]
[Round "05"]
[TimeControl "180+1"]
[Date "2022.06.29"]
[WhiteClock "0:01:49"]
[BlackClock "0:01:41"]

1. d4 {[%clk 0:02:57]}  Nf6 {[%clk 0:02:58]} 2. c4 {[%clk 0:02:57]}  g6 {[%clk 0:02:58]} 3. Nc3 {[%clk 0:02:57]}  d5 {[%clk 0:02:58]} 4. cxd5 {[%clk 0:02:58]}  Nxd5 {[%clk 0:02:58]} 5. g3 {[%clk 0:02:59]}  Bg7 {[%clk 0:02:57]} 6. Bg2 {[%clk 0:02:59]}  c6 {[%clk 0:02:56]} 7. e4 {[%clk 0:02:58]}  Nxc3 {[%clk 0:02:51]} 8. bxc3 {[%clk 0:02:59]}  c5 {[%clk 0:02:50]} 9. Ne2 {[%clk 0:02:58]}  O-O {[%clk 0:02:49]} 10. O-O {[%clk 0:02:57]}  Bg4 {[%clk 0:02:48]} 11. f3 {[%clk 0:02:57]}  Bd7 {[%clk 0:02:47]} 12. Be3 {[%clk 0:02:57]}  Nc6 {[%clk 0:02:44]} 13. Rb1 {[%clk 0:02:53]}  Na5 {[%clk 0:02:32]} 14. Kh1 {[%clk 0:02:52]}  Nc4 {[%clk 0:02:31]} 15. Bg1 {[%clk 0:02:51]}  Bc6 {[%clk 0:02:29]} 16. d5 {[%clk 0:02:49]}  Bd7 {[%clk 0:02:27]} 17. Rxb7 {[%clk 0:02:48]}  Rb8 {[%clk 0:02:19]} 18. Rxb8 {[%clk 0:02:47]}  Qxb8 {[%clk 0:02:18]} 19. Bxc5 {[%clk 0:02:48]}  Qb2 {[%clk 0:02:13]} 20. Rf2 {[%clk 0:02:14]}  Rc8 {[%clk 0:02:06]} 21. Nf4 {[%clk 0:02:04]}  Qxc3 {[%clk 0:02:01]} 22. Rc2 {[%clk 0:02:02]}  Ba4 {[%clk 0:01:54]} 23. Rxc3 {[%clk 0:02:00]}  Bxd1 {[%clk 0:01:54]} 24. Rxc4 {[%clk 0:02:00]}  g5 {[%clk 0:01:42]} 25. Nh5 {[%clk 0:01:55]}  Bh8 {[%clk 0:01:41]} 26. Rc1 {[%clk 0:01:49]} 1-0


[Site "https://www.chess.com"]